bitfinex-derivatives/quotes_BNBF0:USTF0_20250401
["timestamp","ask_amount","ask_price","bid_price","bid_amount"]
[1743507713025,1.35369717,607.18,606.74,0.748]
[1743507713228,1.35369717,607.17,606.74,0.748]
[1743507713427,1.35369717,607.16,606.74,0.748]
[1743507713621,0.567,607.22,606.74,0.748]
[1743507713622,1.35369717,607.15,606.74,0.748]
[1743507713825,1.35369717,607.14,606.74,0.748]
[1743507714021,1.35369717,607.13,606.74,0.748]
[1743507714220,1.35369717,607.12,606.74,0.748]
[1743507714423,0.28672181,607.14,606.74,0.748]
[1743507714624,1.35310417,607.13,606.74,0.748]
[1743507714824,1.35310417,607.12,606.74,0.748]
[1743507715025,0.28672181,607.14,606.75,0.27753172]
[1743507716125,0.28672181,607.14,606.74,0.748]
[1743507716829,0.567,607.22,606.74,0.748]
[1743507717028,1.35306886,607.21,606.74,0.748]
[1743507717228,0.28668638,607.13,606.74,0.748]
[1743507717426,0.567,607.22,606.74,0.748]
[1743507717927,0.2866852,607.12,606.74,0.748]
[1743507718129,0.567,607.22,606.74,0.748]
[1743507718330,0.28668166,607.21,606.74,0.748]
[1743507718723,0.28668166,607.21,606.75,0.2774751]
[1743507719125,0.28668166,607.21,606.74,0.748]
[1743507719925,0.567,607.22,606.74,0.748]
[1743507720230,0.2866852,607.2,606.74,0.748]
[1743507720431,0.2866852,607.2,606.75,0.27748805]
[1743507721033,0.2866852,607.2,605.53,0.27748805]
[1743507721232,0.2866852,607.2,605.55,0.33027825]
[1743507721433,0.2866852,607.2,605.56,0.27748805]
[1743507721628,0.2866852,607.2,605.58,0.33026189]
[1743507721830,0.2866852,607.2,605.59,0.27748805]
[1743507722130,0.2866852,607.2,605.61,0.33024553]
[1743507722336,0.2866852,607.2,605.62,0.27748805]
[1743507722536,0.2866852,607.2,605.64,0.33022917]
[1743507722834,0.567,607.22,605.65,0.27748805]
[1743507723031,0.567,607.22,605.67,0.33021282]
[1743507723235,0.567,607.22,605.68,0.27748805]
[1743507723431,0.567,607.22,605.7,0.33019646]
[1743507723631,0.567,607.22,605.71,0.27748805]
[1743507723835,0.567,607.22,605.73,0.33018011]
[1743507724031,0.28680452,607.21,605.74,0.27748805]
[1743507724233,0.28680452,607.21,605.75,0.27748805]
[1743507724536,0.28680452,607.21,605.72,0.846]
[1743507724537,0.28680452,607.21,605.77,0.33015831]
[1743507724735,0.28680452,607.21,605.78,0.27748805]
[1743507724936,0.28680452,607.21,605.8,0.33014196]
[1743507725236,0.28680452,607.21,605.81,0.27748805]
[1743507725432,0.28680452,607.21,605.83,0.33012561]
[1743507725636,0.28680452,607.21,605.84,0.27748805]
[1743507725837,1.35121399,607.2,605.83,0.33012561]
[1743507726037,1.35121399,607.19,605.84,0.27754823]
[1743507726337,1.35121399,607.18,605.86,0.33010926]
[1743507726533,1.35121399,607.17,605.87,0.27754823]
[1743507726737,0.28680452,607.21,605.86,0.33010926]
[1743507726738,0.28680452,607.21,605.89,0.33009292]
[1743507726937,0.28680452,607.21,605.9,0.27754823]
[1743507727134,0.28680452,607.21,605.91,0.27754823]
[1743507727338,0.28680452,607.21,605.92,0.27754823]
[1743507727538,0.28680452,607.21,605.93,0.27755311]
[1743507727734,0.28680452,607.21,605.95,0.33006023]
[1743507727939,0.28680452,607.21,605.96,0.27755311]
[1743507728141,0.28680452,607.21,605.98,0.33004389]
[1743507728342,0.28680452,607.21,605.99,0.27755311]
[1743507728543,0.28680452,607.21,606.01,0.33002755]
[1743507728843,0.567,607.22,606.02,0.27755311]
[1743507729043,0.567,607.22,606.04,0.33001122]
[1743507729239,0.567,607.22,606.05,0.27755311]
[1743507729442,0.567,607.22,606.06,0.60755344]
[1743507729641,0.28681516,607.21,606.07,0.60754799]
[1743507729843,0.28681516,607.21,606.08,0.60754255]
[1743507730142,0.28681516,607.21,605.77,0.28681516]
[1743507730143,0.28681516,607.21,606.09,0.6075371]
[1743507730442,0.28681516,607.21,606.11,0.3299731]
[1743507730643,0.28681516,607.21,606.12,0.27755311]
[1743507730841,0.28681516,607.21,606.14,0.32995677]
[1743507731041,0.28681516,607.21,606.15,0.27755311]
[1743507731240,0.636,607.2,606.16,0.32994588]
[1743507731441,0.636,607.2,606.17,0.27755311]
[1743507731743,0.636,607.2,606.18,0.329935]
[1743507731939,0.636,607.2,606.19,0.27755311]
[1743507732139,0.28678207,607.19,606.2,0.32992411]
[1743507732339,0.28678207,607.19,606.21,0.27754982]
[1743507732538,0.28678207,607.19,606.22,0.32991323]
[1743507732743,0.28678207,607.19,606.23,0.27754982]
[1743507732945,0.28678207,607.19,606.24,0.60745216]
[1743507733137,0.28678207,607.19,606.25,0.60744672]
[1743507733445,0.28678207,607.19,606.26,0.27754982]
[1743507733646,0.28678207,607.19,606.27,0.32988602]
[1743507733837,0.28678207,607.19,606.28,0.27750901]
[1743507734042,1.11678207,607.19,606.29,0.32987514]
[1743507734340,1.11678207,607.19,606.3,0.27750901]
[1743507734541,1.11678207,607.19,606.31,0.32986426]
[1743507734739,1.11678207,607.19,606.32,0.27750901]
[1743507734938,0.83,607.19,606.33,0.32985338]
[1743507735145,0.28674071,607.18,606.34,0.27750901]
[1743507735445,0.28674071,607.18,606.35,0.3298425]
[1743507735745,0.28674071,607.18,606.36,0.27750901]
[1743507735944,0.28674071,607.18,606.37,0.32983162]
[1743507736245,0.28674071,607.18,606.38,0.27750901]
[1743507736446,0.28674071,607.18,606.39,0.32982074]
[1743507736646,0.28674071,607.18,606.4,0.27750901]
[1743507737547,0.972,607.17,606.4,0.27750901]
[1743507737746,0.972,607.17,606.4,0.92550901]
[1743507737946,0.972,607.17,606.41,0.27750901]
[1743507739043,0.28675725,607.16,606.41,0.27750901]
[1743507740446,0.28675725,607.16,606.42,0.32980442]
[1743507740648,0.28675725,607.16,606.43,0.27750901]
[1743507740952,0.972,607.17,606.44,0.32979354]
[1743507741251,0.972,607.17,606.45,0.27750901]
[1743507741453,0.972,607.17,606.45,0.60729712]
[1743507741648,0.972,607.17,606.46,0.27750901]
[1743507741851,0.972,607.17,606.47,0.27750434]
[1743507742054,0.28672536,607.16,606.46,0.27750434]
[1743507742351,0.28672536,607.16,606.47,0.27750434]
[1743507742552,0.28672536,607.16,606.48,0.27750434]
[1743507742754,0.28672536,607.16,606.46,0.27750434]
[1743507743356,0.28672536,607.16,606.45,0.32978811]
[1743507743559,0.28672536,607.16,606.46,0.27749905]
[1743507743858,0.972,607.17,606.46,0.27749905]
[1743507744158,0.28672536,607.15,606.46,0.27749905]
[1743507746859,0.972,607.17,606.46,0.27749905]
[1743507747259,0.28672536,607.14,606.46,0.27749905]
[1743507750865,0.28672536,607.14,606.47,0.32977723]
[1743507751064,0.28672536,607.14,606.48,0.27749905]
[1743507751963,0.28672536,607.14,606.47,0.32977723]
[1743507752164,1.35092102,607.13,605.29,2.50262241]
[1743507752463,1.35092102,607.12,605.31,0.33040921]
[1743507752658,1.35092102,607.11,605.32,0.27763379]
[1743507752862,1.35092102,607.1,605.56,2.50262241]
[1743507753064,1.35092102,607.09,605.58,0.33026189]
[1743507753263,1.35092102,607.08,605.59,0.27763379]
[1743507753461,1.35092102,607.07,605.61,0.33024553]
[1743507753662,1.35092102,607.06,605.62,0.27763379]
[1743507753960,1.35092102,607.05,605.64,0.33022917]
[1743507754162,1.35092102,607.04,605.65,0.27763379]
[1743507754357,1.35092102,607.03,605.67,0.33021282]
[1743507754559,1.35092102,607.02,605.68,0.27763379]
[1743507754861,0.28693577,607.11,605.7,0.33019646]
[1743507754862,1.35092102,607.01,605.7,0.33019646]
[1743507755165,1.34951081,607.0,605.71,0.27763379]
[1743507755468,1.34951081,606.99,605.73,0.33018011]
[1743507755764,1.34951081,606.99,605.74,0.27763379]
[1743507755765,1.34951081,606.98,605.74,0.27763379]
[1743507756064,1.34951081,606.98,605.56,0.607]
[1743507756065,1.34951081,606.97,605.76,0.33016376]
[1743507756264,1.34951081,606.96,605.77,0.27763379]
[1743507756566,0.759,606.99,605.79,0.33014741]
[1743507756567,1.34951081,606.95,605.79,0.33014741]
[1743507756765,0.759,606.99,605.8,0.27763379]
[1743507756965,0.759,606.99,605.82,0.33013106]
[1743507757165,0.28690856,606.94,605.83,0.27763379]
[1743507757359,0.28690856,606.94,605.6,0.28690856]
[1743507757360,0.28690856,606.94,605.85,0.33011471]
[1743507757566,0.28690856,606.94,605.86,0.27763379]
[1743507757766,0.28690856,606.94,605.88,0.33009836]
[1743507757965,0.28690856,606.94,605.89,0.27765331]
[1743507758158,0.28690856,606.94,605.91,0.33008202]
[1743507758363,0.28690856,606.94,605.92,0.27765331]
[1743507758564,0.28690856,606.94,605.94,0.33006568]
[1743507758763,0.28690856,606.94,605.95,0.27765331]
[1743507758964,0.759,606.99,605.97,0.33004934]
[1743507759166,0.759,606.99,605.98,0.27765331]
[1743507759467,0.759,606.99,606.0,0.330033]
[1743507759662,0.759,606.99,606.01,0.27758691]
[1743507759866,0.759,606.99,606.03,0.33001666]
[1743507760067,0.2868317,606.98,606.04,0.27758691]
[1743507760267,0.2868317,606.98,606.06,0.33000033]
[1743507760466,0.2868317,606.98,606.07,0.27758691]
[1743507760664,0.2868317,606.98,606.09,0.32998399]
[1743507760864,0.2868317,606.98,606.1,0.27758691]
[1743507761060,0.2868317,606.98,606.12,0.32996766]
[1743507761259,0.2868317,606.98,606.13,0.27758691]
[1743507761465,0.2868317,606.98,606.14,0.32995677]
[1743507761662,0.2868317,606.98,606.15,0.27758691]
[1743507761866,0.759,606.99,606.16,0.32994588]
[1743507762067,0.759,606.99,606.17,0.27758691]
[1743507762267,0.759,606.99,606.18,0.329935]
[1743507762564,0.759,606.99,606.19,0.27758619]
[1743507762766,0.759,606.99,606.2,0.32992411]
[1743507762961,0.28681043,606.98,606.21,0.27758619]
[1743507763563,0.28681043,606.98,606.22,0.32991323]
[1743507763766,0.28681043,606.98,606.23,0.27758619]
[1743507763968,0.604,606.97,606.23,0.27758619]
[1743507764872,0.604,606.97,606.24,0.27758619]
[1743507765072,0.28680688,606.96,606.25,0.27758619]
[1743507765370,0.866,606.95,606.26,0.60747765]
[1743507765571,0.866,606.95,606.27,0.60747221]
[1743507765771,0.866,606.95,606.28,0.60746677]
[1743507766066,0.866,606.95,606.29,0.27758619]
[1743507766767,0.866,606.95,606.3,0.3298697]
[1743507766971,0.866,606.95,606.31,0.27758619]
[1743507767565,0.866,606.95,606.32,0.32985882]
[1743507767768,0.866,606.95,606.33,0.27758619]
[1743507767965,0.866,606.95,606.34,0.32984794]
[1743507768173,0.866,606.95,606.35,0.27758619]
[1743507768367,0.866,606.95,606.36,0.32983706]
[1743507768565,0.866,606.95,606.37,0.27758619]
[1743507768770,0.866,606.95,606.38,0.32982618]
[1743507769071,0.866,606.95,606.39,0.27752512]
[1743507769275,0.866,606.95,606.4,0.3298153]
[1743507769573,0.866,606.95,606.41,0.27752512]
[1743507769871,0.866,606.95,606.42,0.32980442]
[1743507770071,0.866,606.95,606.43,0.27752512]
[1743507770273,0.866,606.95,606.44,0.32979354]
[1743507770572,0.866,606.95,606.45,0.27752512]
[1743507771665,0.866,606.95,606.46,0.529]
[1743507771869,1.583,606.95,606.47,0.27752512]
[1743507772079,1.583,606.95,606.46,0.529]
[1743507779977,1.583,606.95,606.47,0.32977723]
[1743507780180,1.583,606.95,606.48,0.27750402]
[1743507780379,1.583,606.95,606.49,0.32976636]
[1743507780582,0.717,606.95,606.5,0.27750402]
[1743507780783,0.717,606.95,606.5,0.60726494]
[1743507780978,0.717,606.95,606.51,0.27750402]
[1743507782779,0.717,606.95,606.5,0.32976092]
[1743507783084,0.717,606.95,606.51,0.27749999]
[1743507783885,0.717,606.95,606.52,0.32975004]
[1743507784186,0.717,606.95,606.53,0.27749999]
[1743507785981,0.717,606.95,606.52,0.32975004]
[1743507786182,0.717,606.95,606.53,0.27747784]
[1743507787582,0.717,606.95,606.54,0.32973917]
[1743507787786,0.717,606.95,606.55,0.27746526]
[1743507788088,0.717,606.95,606.55,0.607199]
[1743507788389,0.717,606.95,606.56,0.27746526]
[1743507788785,0.717,606.95,606.56,0.60719356]
[1743507788987,0.717,606.95,606.57,0.27746526]
[1743507789888,0.717,606.95,606.58,0.32971743]
[1743507790085,0.717,606.95,606.59,0.27746526]
[1743507790292,0.717,606.95,606.6,0.32970656]
[1743507790589,0.717,606.95,606.61,0.27746526]
[1743507790984,0.717,606.95,606.62,0.32969569]
[1743507791389,0.717,606.95,606.63,0.27746526]
[1743507791588,0.717,606.95,606.64,0.32968482]
[1743507791789,0.717,606.95,606.65,0.27746526]
[1743507792090,0.717,606.95,606.66,0.32967395]
[1743507792289,0.717,606.95,606.67,0.27746526]
[1743507793091,0.717,606.95,606.67,0.60713377]
[1743507793294,0.717,606.95,606.68,0.27746526]
[1743507793591,0.717,606.95,606.69,0.32965765]
[1743507793789,0.717,606.95,606.7,0.27746526]
[1743507797487,0.717,606.95,606.69,0.32965765]
[1743507797692,0.717,606.95,606.7,0.27737707]
[1743507800693,0.717,606.95,606.69,0.32965765]
[1743507800996,0.717,606.95,606.7,0.2773764]
[1743507801793,0.63,606.99,606.7,0.2773764]
[1743507802294,0.63,606.99,606.69,0.32965765]
[1743507802495,0.63,606.99,606.7,0.27737587]
[1743507803196,0.63,606.99,606.71,0.32964678]
[1743507803397,0.63,606.99,606.72,0.27737587]
[1743507804103,0.63,606.99,606.72,0.60701722]
[1743507804297,0.63,606.99,606.73,0.27737587]
[1743507806597,0.762,607.15,606.73,0.27737587]
[1743507807398,0.762,607.15,606.74,0.2773835]
[1743507807597,0.762,607.15,606.73,0.2773835]
[1743507807795,0.762,607.15,606.74,0.2773835]
[1743507808002,0.762,607.15,606.72,0.32964135]
[1743507808003,0.762,607.15,606.73,0.2773835]
[1743507808294,0.762,607.15,606.74,0.2773835]
[1743507808597,0.762,607.15,606.75,0.2773835]
[1743507808796,0.762,607.15,606.72,0.32964135]
[1743507808997,0.762,607.15,606.73,0.27738376]
[1743507810699,0.762,607.15,606.74,0.27739043]
[1743507810898,0.762,607.15,606.75,0.27739043]
[1743507811092,0.762,607.15,606.76,0.27739043]
[1743507811299,0.762,607.15,606.77,0.27739043]
[1743507811499,0.762,607.15,606.78,0.27739043]
[1743507811699,0.762,607.15,606.79,0.27739043]
[1743507812001,0.762,607.15,606.8,0.27739043]
[1743507812200,0.762,607.15,606.81,0.27739011]
[1743507812398,0.762,607.15,606.73,0.27739011]
[1743507812602,0.762,607.15,606.74,0.27739011]
[1743507812796,0.762,607.15,606.73,0.27739011]
[1743507813102,0.762,607.15,606.74,0.27739011]
[1743507813302,0.762,607.15,606.73,0.27739011]
[1743507813495,0.541,607.21,606.74,0.27739011]
[1743507813699,0.541,607.21,606.72,0.32964135]
[1743507813903,0.541,607.21,606.73,0.27739052]
[1743507817004,1.211,607.21,606.73,0.27739052]
[1743507824411,1.211,607.21,606.73,0.88739052]
[1743507824617,1.211,607.21,606.74,0.27739052]
[1743507825014,0.67,607.21,606.73,0.61]
[1743507825214,0.67,607.21,606.74,0.27738442]
[1743507825618,0.67,607.21,606.74,0.6070149]
[1743507825919,0.67,607.21,606.75,0.27738442]
[1743507826620,0.67,607.21,606.74,0.32963048]
[1743507826822,0.67,607.21,606.75,0.27738206]
[1743507829822,0.67,607.21,606.74,0.32963048]
[1743507830021,0.67,607.21,606.75,0.27738009]
[1743507832822,0.67,607.21,606.76,0.32961961]
[1743507833023,0.67,607.21,606.77,0.27738009]
[1743507834721,0.67,607.21,606.78,0.27737576]
[1743507834926,0.67,607.21,606.79,0.27737576]
[1743507835221,0.67,607.21,606.76,0.32961961]
[1743507835222,0.67,607.21,606.8,0.27737219]
[1743507835528,0.67,607.21,606.81,0.27737219]
[1743507835826,0.67,607.21,606.82,0.27737219]
[1743507836027,0.67,607.21,606.76,0.32961961]
[1743507836028,0.67,607.21,606.83,0.27737219]
[1743507836229,0.67,607.21,606.77,0.27737219]
[1743507836421,0.67,607.21,606.78,0.27737061]
[1743507836622,0.67,607.21,606.79,0.27737061]
[1743507836823,0.67,607.21,606.77,0.27737061]
[1743507838126,0.52,607.22,606.78,0.27737089]
[1743507838330,0.52,607.22,606.79,0.27737089]
[1743507838531,0.52,607.22,606.77,0.27737089]
[1743507838731,0.52,607.22,606.78,0.27737089]
[1743507838924,0.52,607.22,606.77,0.27737089]
[1743507839129,0.52,607.22,606.78,0.27737089]
[1743507839329,0.52,607.22,606.77,0.27737089]
[1743507839535,0.52,607.22,606.76,0.32961961]
[1743507839732,0.52,607.22,606.77,0.27737084]
[1743507840132,0.52,607.22,606.78,0.32960875]
[1743507840326,0.715,607.23,606.79,0.27737084]
[1743507840527,0.715,607.23,606.8,0.32959789]
[1743507841131,0.715,607.23,606.81,0.27730503]
[1743507841330,0.715,607.23,606.82,0.32958702]
[1743507841633,0.715,607.23,606.83,0.27730503]
[1743507841830,0.792,607.3,606.84,0.32957616]
[1743507842027,0.792,607.3,606.85,0.27730503]
[1743507842428,0.792,607.3,606.86,0.3295653]
[1743507842636,0.792,607.3,606.87,0.27730503]
[1743507843136,0.792,607.3,606.88,0.32955444]
[1743507843332,0.792,607.3,606.89,0.27730503]
[1743507843534,0.792,607.3,606.9,0.32954358]
[1743507843735,0.792,607.3,606.91,0.27730503]
[1743507843935,0.792,607.3,606.92,0.32953272]
[1743507844136,0.792,607.3,606.93,0.27730503]
[1743507845737,0.792,607.3,606.94,0.27730285]
[1743507845940,0.792,607.3,606.95,0.27730285]
[1743507846138,0.792,607.3,606.96,0.27730285]
[1743507846437,0.792,607.3,606.97,0.27730285]
[1743507846636,0.792,607.3,606.93,0.27730285]
[1743507846837,0.792,607.3,606.94,0.27730285]
[1743507847036,0.792,607.3,606.93,0.27730285]
[1743507847233,0.792,607.3,606.94,0.27730285]
[1743507847440,0.792,607.3,606.93,0.27730285]
[1743507847735,0.792,607.3,606.94,0.27730285]
[1743507847941,0.792,607.3,606.93,0.27730285]
[1743507848235,0.792,607.3,606.94,0.27730285]
[1743507848442,0.792,607.3,606.93,0.27730285]
[1743507848735,0.792,607.3,606.94,0.27730285]
[1743507848938,0.792,607.3,606.92,0.32953272]
[1743507848939,0.792,607.3,606.95,0.27730285]
[1743507849134,0.792,607.3,606.96,0.27730285]
[1743507849340,0.792,607.3,606.97,0.27730285]
[1743507849536,0.792,607.3,606.93,0.27730285]
[1743507849739,0.792,607.3,606.94,0.27730285]
[1743507849935,0.792,607.3,606.93,0.27730285]
[1743507850137,0.792,607.3,606.94,0.27730285]
[1743507850335,0.792,607.3,606.93,0.27730285]
[1743507850642,0.792,607.3,606.94,0.60682471]
[1743507850843,0.792,607.3,606.95,0.27730285]
[1743507851337,0.792,607.3,606.96,0.329511]
[1743507851543,0.792,607.3,606.97,0.27730285]
[1743507852337,0.792,607.3,606.98,0.32950014]
[1743507852539,0.792,607.3,606.99,0.27730285]
[1743507852741,0.792,607.3,607.0,0.32948929]
[1743507852945,0.792,607.3,607.01,0.27730285]
[1743507853147,0.792,607.3,607.02,0.32947843]
[1743507853345,0.792,607.3,607.03,0.27730285]
[1743507855245,0.792,607.3,607.04,0.27727014]
[1743507855441,0.792,607.3,607.03,0.27727014]
[1743507855642,0.792,607.3,607.02,0.32947843]
[1743507861154,0.792,607.3,607.03,0.2772943]
[1743507863255,0.792,607.3,607.04,0.27729462]
[1743507863455,0.792,607.3,607.05,0.27729462]
[1743507863657,0.792,607.3,607.03,0.27729462]
[1743507863857,0.792,607.3,607.02,0.32947843]
[1743507863858,0.792,607.3,607.04,0.27729462]
[1743507864050,0.792,607.3,607.05,0.27729462]
[1743507864255,0.792,607.3,607.06,0.27729462]
[1743507864449,0.792,607.3,607.07,0.27729462]
[1743507864655,0.792,607.3,607.08,0.27729462]
[1743507864856,0.774,607.41,607.09,0.27729462]
[1743507865054,0.774,607.41,607.03,0.27729462]
[1743507865258,0.774,607.41,607.04,0.27729462]
[1743507865562,0.774,607.41,607.05,0.27729462]
[1743507865755,0.774,607.41,607.06,0.27729462]
[1743507865961,0.774,607.41,607.07,0.27729462]
[1743507866160,0.774,607.41,607.02,0.32947843]
[1743507867760,1.35533685,607.4,607.02,0.32947843]
[1743507867963,0.774,607.41,606.82,0.714]
[1743507868261,0.28659784,607.39,606.82,0.714]
[1743507869958,0.586,607.42,606.82,0.714]
[1743507870162,1.35483723,607.49,606.82,0.714]
[1743507870359,1.599,607.5,606.82,0.714]
[1743507870758,1.35473716,607.49,606.82,0.714]
[1743507870966,1.599,607.5,606.82,0.714]
[1743507871264,0.28657542,607.48,606.82,0.714]
[1743507871465,0.28657542,607.48,606.83,0.27738449]
[1743507873457,0.699,607.47,606.83,0.27738449]
[1743507877369,0.28656126,607.46,606.83,0.27738449]
[1743507877869,0.28656126,607.46,606.84,0.27732305]
[1743507878065,0.28656126,607.46,606.85,0.27732305]
[1743507878263,0.28656126,607.46,606.82,0.714]
[1743507878465,0.28656126,607.46,606.83,0.27731282]
[1743507878871,0.699,607.47,606.83,0.27731282]
[1743507879268,0.28656126,607.45,606.83,0.27731282]
[1743507879463,0.28656126,607.45,606.84,0.27731027]
[1743507879668,0.28656126,607.45,606.85,0.27731027]
[1743507879870,0.28656126,607.45,606.83,0.27731027]
[1743507880069,0.28656126,607.45,606.84,0.27731027]
[1743507880269,0.28656126,607.45,606.85,0.27731027]
[1743507880469,0.28656126,607.45,606.83,0.27731027]
[1743507880665,0.28656126,607.45,606.84,0.27731027]
[1743507880871,0.28656126,607.45,606.83,0.27731027]
[1743507881071,0.28656126,607.45,606.84,0.27731027]
[1743507881267,0.28656126,607.45,606.83,0.27731027]
[1743507881472,0.28656126,607.45,606.84,0.27731027]
[1743507881671,0.28656126,607.45,606.85,0.27731027]
[1743507881873,0.28656126,607.45,606.83,0.27731027]
[1743507882068,0.28656126,607.45,606.84,0.27731027]
[1743507882276,0.28656126,607.45,606.83,0.27731027]
[1743507882468,0.28656126,607.45,606.84,0.27731027]
[1743507882669,0.28656126,607.45,606.85,0.27731837]
[1743507882871,0.28656126,607.45,606.86,0.27731837]
[1743507883071,0.28656126,607.45,606.83,0.27731837]
[1743507883273,0.28656126,607.45,606.84,0.27731837]
[1743507883473,0.28656126,607.45,606.85,0.27731837]
[1743507883677,0.28656126,607.45,606.83,0.27731837]
[1743507883976,1.11356126,607.45,606.84,0.27731837]
[1743507884171,1.11356126,607.45,606.85,0.27731052]
[1743507884381,1.11356126,607.45,606.86,0.27731052]
[1743507884574,1.11356126,607.45,606.83,0.27731052]
[1743507884778,1.11356126,607.45,606.84,0.27731052]
[1743507884979,0.827,607.45,606.85,0.27731052]
[1743507885281,0.827,607.45,606.86,0.27731052]
[1743507885580,0.827,607.45,606.87,0.27731052]
[1743507885777,0.827,607.45,606.83,0.27731052]
[1743507885975,0.827,607.45,606.84,0.27731052]
[1743507886176,0.28656362,607.44,606.85,0.27731052]
[1743507886376,0.28656362,607.44,606.83,0.27731052]
[1743507886582,0.28656362,607.44,606.84,0.27731052]
[1743507886876,0.28656362,607.44,606.85,0.27731052]
[1743507887082,0.28656362,607.44,606.83,0.27731052]
[1743507887276,0.28656362,607.44,606.84,0.27731052]
[1743507887475,0.28656362,607.44,606.85,0.27730925]
[1743507887678,0.28656362,607.44,606.83,0.27730925]
[1743507887882,0.827,607.45,606.84,0.27730925]
[1743507888080,0.827,607.45,606.83,0.27730925]
[1743507888383,0.28656362,607.43,606.84,0.27730925]
[1743507888581,0.28656362,607.43,606.83,0.27730925]
[1743507888781,0.28656362,607.43,606.84,0.27730925]
[1743507889082,0.28656362,607.43,606.85,0.27730925]
[1743507889285,0.28656362,607.43,606.83,0.27730925]
[1743507889476,0.605,607.42,606.84,0.27730925]
[1743507889679,0.605,607.42,606.85,0.27730925]
[1743507889883,0.605,607.42,606.83,0.27730925]
[1743507890083,0.605,607.42,606.84,0.27730925]
[1743507890283,0.605,607.42,606.83,0.27730925]
[1743507890482,0.605,607.42,606.84,0.60688541]
[1743507890677,0.605,607.42,606.85,0.60683624]
[1743507890884,0.605,607.42,606.86,0.60683081]
[1743507891084,0.605,607.42,606.87,0.60682538]
[1743507891284,0.605,607.42,606.88,0.60681995]
[1743507891483,0.605,607.42,606.89,0.60681452]
[1743507891785,0.605,607.42,606.9,0.60680909]
[1743507891980,0.605,607.42,606.91,0.60680366]
[1743507892188,0.605,607.42,606.92,0.60679823]
[1743507892390,0.605,607.42,606.93,0.6067928]
[1743507892588,0.605,607.42,606.94,0.60678737]
[1743507892791,0.605,607.42,606.95,0.60678194]
[1743507892991,0.605,607.42,606.96,0.60677651]
[1743507893188,0.605,607.42,606.97,0.32950557]
[1743507900801,0.605,607.42,606.94,0.547]
[1743507901195,0.2865884,607.41,606.94,0.547]
[1743507902995,0.605,607.42,606.94,0.547]
[1743507904200,0.28673953,607.41,606.94,0.547]
[1743507905896,0.605,607.42,606.94,0.547]
[1743507907196,0.28675371,607.41,606.94,0.547]
[1743507908895,0.605,607.42,606.94,0.547]
[1743507909297,0.28674898,607.4,606.94,0.547]
[1743507910400,0.28674898,607.4,606.95,0.27736756]
[1743507911900,0.605,607.42,606.95,0.27736756]
[1743507913303,0.28656008,607.41,606.95,0.27736756]
[1743507914903,0.605,607.42,606.95,0.27736756]
[1743507915306,0.28656008,607.4,606.95,0.27736756]
[1743507915506,0.28656008,607.4,606.94,0.547]
[1743507917905,0.605,607.42,606.94,0.547]
[1743507919206,0.28671945,607.41,606.94,0.547]
[1743507921009,0.605,607.42,606.94,0.547]
[1743507921315,0.28674426,607.4,606.94,0.547]
[1743507923911,0.605,607.42,606.94,0.547]
[1743507925217,0.28672654,607.41,606.94,0.547]
[1743507926316,0.28672654,607.41,606.95,0.27736985]
[1743507926918,0.758,607.43,606.95,0.27736985]
[1743507928122,0.28655891,607.42,606.95,0.27736985]
[1743507928825,1.35579366,607.41,606.95,0.27736985]
[1743507929024,1.35579366,607.4,606.95,0.27736985]
[1743507929221,1.35579366,607.39,606.95,0.27736985]
[1743507929425,0.28655891,607.42,606.95,0.27736985]
[1743507929926,2.356,607.43,606.95,0.27736985]
[1743507931029,2.356,607.43,606.94,0.547]
[1743507931227,0.28658486,607.42,606.94,0.547]
[1743507933026,1.598,607.43,606.94,0.547]
[1743507934332,0.28671,607.42,606.94,0.547]
[1743507939034,1.598,607.43,606.94,0.547]
[1743507939236,0.28671945,607.41,606.94,0.547]
[1743507941637,0.28671945,607.41,605.72,2.50262241]
[1743507941937,1.598,607.43,605.74,0.33017466]
[1743507942131,1.598,607.43,605.75,0.27738851]